[Event "POL-chT 2 Liga 2019"]
[Site "Poronin"]
[Date "2019.09.08"]
[Round "2.32"]
[White "Lapczynski, Artur"]
[Black "Lizak, Jakub"]
[Result "0-1"]
[ECO "A57"]
[WhiteElo "2048"]
[BlackElo "2236"]
[Annotator "NA"]
[PlyCount "90"]
[EventDate "2019.09.07"]
[EventType "team-tourn"]
[EventCountry "POL"]
[SourceTitle "playchess.com"]
[Source "ChessBase"]
[SourceQuality "1"]
[TimeControl "40/5400+30:1800+30"]

1. d4 {[%emt 0:00:00]} Nf6 {[%emt 0:00:00]} 2. c4 {[%emt 0:00:00]} c5 {[%emt 0:00:00]} 3. d5 {[%emt 0:00:53]} b5 {[%emt 0:00:00]} 4. cxb5 {[%emt 0:00:45]} a6 {[%emt 0:00:00]} 5. b6 {[%emt 0:00:45]} d6 {[%emt 0:01:22]} 6. Nc3 {[%emt 0:01:31]} Nbd7 {[%emt 0:01:36]} 7. e4 {[%emt 0:03:38]} g6 {[%emt 0:06:07]} 8. a4 {[%emt 0:02:08]} Qxb6 {[%emt 0:00:58]} 9. a5 {[%emt 0:00:48]} Qb7 {[%emt 0:01:14]} 10. f4 {[%emt 0:09:18]} Bg7 {[%emt 0:00:43]} 11. Nf3 {[%emt 0:03:46]} O-O {[%emt 0:00:18]} 12. Bc4 {[%emt 0:07:26]} Ne8 {[%emt 0:01:10]} 13. O-O {[%emt 0:05:09]} Nc7 {[%emt 0:00:37]} 14. Qd3 {[%emt 0:07:23]} Rb8 {[%emt 0:01:14]} 15. Kh1 {[%emt 0:08:41]} Nb5 {[%emt 0:03:41]} 16. Bxb5 {[%emt 0:03:07]} axb5 {[%emt 0:01:10]} 17. a6 {[%emt 0:01:36]} Qa7 {[%emt 0:08:02]} 18. Nxb5 {[%emt 0:04:30]} Bxa6 {[%emt 0:00:19]} 19. Nxa7 {[%emt 0:00:56]} Bxd3 {[%emt 0:00:04]} 20. Re1 {[%emt 0:03:32]} Ra8 {[%emt 0:04:55]} 21. Ra3 {[%emt 0:01:47]} c4 {[%emt 0:00:44]} 22. Nc6 {[%emt 0:00:47]} Rxa3 {[%emt 0:01:32]} 23. bxa3 {[%emt 0:01:33]} e6 {[%emt 0:03:43]} 24. dxe6 {[%emt 0:05:12]} fxe6 {[%emt 0:00:05]} 25. Ng5 {[%emt 0:00:32]} Re8 {[%emt 0:01:21]} 26. e5 {[%emt 0:04:24]} dxe5 {[%emt 0:02:25]} 27. fxe5 {[%emt 0:00:59]} Nc5 {[%emt 0:00:38]} 28. h3 {[%emt 0:03:29]} h6 {[%emt 0:04:50]} 29. Nf3 {[%emt 0:00:10]} Be4 {[%emt 0:01:31]} 30. Nfd4 {[%emt 0:05:46]} Nd3 {[%emt 0:00:21]} 31. Rf1 {[%emt 0:01:20]} Rf8 {[%emt 0:01:09]} 32. Rxf8+ {[%emt 0:03:23]} Bxf8 {[%emt 0:00:11]} 33. Bd2 {[%emt 0:01:34]} Bxa3 {[%emt 0:01:23]} 34. Na5 {[%emt 0:03:14]} Bd5 {[%emt 0:00:51]} 35. Nc2 {[%emt 0:01:00]} Bb2 {[%emt 0:01:36]} 36. Bxh6 {[%emt 0:02:37]} Bc3 {[%emt 0:00:13]} 37. Nxc4 Bxc4 {[%emt 0:00:05]} 38. Ne3 {[%emt 0:02:09]} Bd5 {[%emt 0:00:26]} 39. Kg1 {[%emt 0:01:43]} Bxe5 {[%emt 0:00:41]} 40. Ng4 {[%emt 0:00:00]} Bf4 {[%emt 0:00:00]} 41. Bxf4 {[%emt 0:02:04]} Nxf4 {[%emt 0:00:38]} 42. Ne3 {[%emt 0:00:17]} Kf7 {[%emt 0:00:17]} 43. Kf2 {[%emt 0:00:21]} Kf6 {[%emt 0:00:33]} 44. h4 {[%emt 0:00:23]} Nxg2 {[%emt 0:00:53]} 45. Nxg2 {[%emt 0:00:10]} Bxg2 {[%emt 0:00:03]} 0-1

[Event "POL-chT 2 Liga 2019"]
[Site "Poronin"]
[Date "2019.09.08"]
[Round "2.33"]
[White "Duda, Lukasz"]
[Black "Mirski, Michal"]
[Result "1/2-1/2"]
[ECO "A25"]
[WhiteElo "2209"]
[BlackElo "1999"]
[Annotator "NA"]
[PlyCount "60"]
[EventDate "2019.09.07"]
[EventType "team-tourn"]
[EventCountry "POL"]
[SourceTitle "playchess.com"]
[Source "ChessBase"]
[SourceQuality "1"]
[TimeControl "40/5400+30:1800+30"]

1. c4 {[%emt 0:00:00]} e5 {[%emt 0:00:32]} 2. g3 {[%emt 0:00:00]} Nc6 {[%emt 0:00:09]} 3. Bg2 {[%emt 0:00:01]} g6 {[%emt 0:00:07]} 4. Nc3 {[%emt 0:00:43]} Bg7 {[%emt 0:00:09]} 5. d3 {[%emt 0:02:17]} Nge7 {[%emt 0:00:29]} 6. e4 {[%emt 0:03:02]} O-O {[%emt 0:00:52]} 7. Nge2 {[%emt 0:01:00]} d6 {[%emt 0:01:17]} 8. O-O {[%emt 0:00:51]} Be6 {[%emt 0:02:58]} 9. Nd5 {[%emt 0:04:07]} Nd4 {[%emt 0:04:17]} 10. Rb1 {[%emt 0:09:28]} c6 {[%emt 0:09:41]} 11. Nxe7+ {[%emt 0:01:08]} Qxe7 {[%emt 0:00:06]} 12. b4 {[%emt 0:02:38]} Bg4 {[%emt 0:04:53]} 13. f3 {[%emt 0:00:29]} Nxe2+ {[%emt 0:00:38]} 14. Qxe2 {[%emt 0:00:08]} Be6 {[%emt 0:00:23]} 15. f4 {[%emt 0:09:09]} exf4 {[%emt 0:04:34]} 16. gxf4 {[%emt 0:05:55]} Qd7 {[%emt 0:05:31]} 17. Bb2 {[%emt 0:07:48]} Bxb2 {[%emt 0:04:21]} 18. Rxb2 {[%emt 0:04:02]} f5 {[%emt 0:27:43]} 19. b5 {[%emt 0:05:33]} fxe4 {[%emt 0:01:49]} 20. Qxe4 {[%emt 0:18:48]} d5 {[%emt 0:02:24]} 21. bxc6 {[%emt 0:00:55]} bxc6 {[%emt 0:00:16]} 22. Qd4 {[%emt 0:00:51]} Qg7 {[%emt 0:13:47]} 23. Qxg7+ {[%emt 0:04:01]} Kxg7 {[%emt 0:00:04]} 24. cxd5 {[%emt 0:01:46]} Bxd5 {[%emt 0:00:41]} 25. Rb7+ {[%emt 0:02:11]} Rf7 {[%emt 0:01:18]} 26. Rxf7+ {[%emt 0:11:45]} Kxf7 {[%emt 0:01:43]} 27. Bxd5+ cxd5 {[%emt 0:00:03]} 28. Rc1 {[%emt 0:02:37]} Re8 {[%emt 0:02:22]} 29. Kf2 {[%emt 0:00:28]} Re7 {[%emt 0:03:52]} 30. Rc5 Ke6 1/2-1/2

[Event "POL-chT 2 Liga 2019"]
[Site "Poronin"]
[Date "2019.09.08"]
[Round "2.34"]
[White "Wnek, Filip"]
[Black "Gola, Karol"]
[Result "0-1"]
[ECO "B80"]
[WhiteElo "1962"]
[BlackElo "2203"]
[Annotator "NA"]
[PlyCount "76"]
[EventDate "2019.09.07"]
[EventType "team-tourn"]
[EventCountry "POL"]
[SourceTitle "playchess.com"]
[Source "ChessBase"]
[SourceQuality "1"]
[TimeControl "40/5400+30:1800+30"]

1. e4 {[%emt 0:00:00]} c5 {[%emt 0:00:00]} 2. Nf3 {[%emt 0:00:24]} e6 {[%emt 0:00:00]} 3. d4 {[%emt 0:00:22]} cxd4 {[%emt 0:00:00]} 4. Nxd4 {[%emt 0:00:22]} Nf6 {[%emt 0:00:00]} 5. Nc3 {[%emt 0:00:22]} d6 {[%emt 0:00:07]} 6. g3 {[%emt 0:00:31]} a6 {[%emt 0:07:32]} 7. Bg2 {[%emt 0:00:09]} Qc7 {[%emt 0:00:29]} 8. O-O {[%emt 0:00:19]} Be7 {[%emt 0:00:30]} 9. Re1 {[%emt 0:00:28]} O-O {[%emt 0:01:28]} 10. f4 {[%emt 0:08:49]} Rd8 {[%emt 0:03:21]} 11. Kh1 {[%emt 0:07:14]} Nc6 {[%emt 0:07:11]} 12. Be3 {[%emt 0:03:04]} Na5 {[%emt 0:13:46]} 13. Qe2 {[%emt 0:12:41]} Nc4 {[%emt 0:01:44]} 14. Bc1 {[%emt 0:00:22]} Rb8 {[%emt 0:06:14]} 15. a4 {[%emt 0:01:37]} b6 {[%emt 0:03:22]} 16. Rb1 {[%emt 0:05:22]} Bb7 {[%emt 0:06:48]} 17. g4 {[%emt 0:03:41]} Nd7 {[%emt 0:10:33]} 18. g5 {[%emt 0:00:52]} Bf8 {[%emt 0:03:26]} 19. Qg4 {[%emt 0:07:24]} Re8 {[%emt 0:12:48]} 20. b3 {[%emt 0:09:44]} Nce5 {[%emt 0:02:50]} 21. Qg3 {[%emt 0:03:13]} Nc6 {[%emt 0:06:15]} 22. Nxc6 {[%emt 0:00:47]} Bxc6 {[%emt 0:00:07]} 23. Bb2 {[%emt 0:00:28]} b5 {[%emt 0:00:54]} 24. axb5 {[%emt 0:00:27]} axb5 {[%emt 0:00:04]} 25. Qh4 {[%emt 0:01:55]} b4 {[%emt 0:01:36]} 26. Nd1 {[%emt 0:01:59]} Be7 {[%emt 0:02:12]} 27. Re3 {[%emt 0:01:33]} Nf8 {[%emt 0:00:48]} 28. Nf2 {[%emt 0:01:49]} Ng6 {[%emt 0:08:28]} 29. Qg4 {[%emt 0:01:21]} d5 {[%emt 0:00:24]} 30. exd5 {[%emt 0:00:47]} Bc5 {[%emt 0:00:29]} 31. Re2 {[%emt 0:08:42]} Bxd5 {[%emt 0:00:49]} 32. Bxd5 {[%emt 0:00:34]} exd5 {[%emt 0:00:03]} 33. Rxe8+ {[%emt 0:00:13]} Rxe8 {[%emt 0:00:04]} 34. Nd3 {[%emt 0:00:08]} Bd6 {[%emt 0:01:00]} 35. Rc1 {[%emt 0:05:36]} Nxf4 {[%emt 0:00:18]} 36. Rf1 {[%emt 0:00:47]} Nxd3 {[%emt 0:01:13]} 37. cxd3 {[%emt 0:00:02]} Qc2 {[%emt 0:00:31]} 38. Qh5 {[%emt 0:04:41]} g6 {[%emt 0:00:19]} 0-1

[Event "POL-chT 2 Liga 2019"]
[Site "Poronin"]
[Date "2019.09.08"]
[Round "2.35"]
[White "Szolc, Grzegorz"]
[Black "Baryczka, Kamil"]
[Result "1-0"]
[ECO "A83"]
[WhiteElo "2038"]
[BlackElo "2034"]
[Annotator "NA"]
[PlyCount "123"]
[EventDate "2019.09.07"]
[EventType "team-tourn"]
[EventCountry "POL"]
[SourceTitle "playchess.com"]
[Source "ChessBase"]
[SourceQuality "1"]
[TimeControl "40/5400+30:1800+30"]

1. d4 {[%emt 0:00:00]} f5 {[%emt 0:00:25]} 2. e4 {[%emt 0:02:07]} fxe4 {[%emt 0:02:21]} 3. Nc3 {[%emt 0:00:10]} Nf6 {[%emt 0:01:48]} 4. Bg5 {[%emt 0:00:32]} g6 {[%emt 0:00:29]} 5. Bxf6 {[%emt 0:05:07]} exf6 {[%emt 0:00:06]} 6. Nxe4 {[%emt 0:00:30]} Bg7 {[%emt 0:00:55]} 7. Qd3 {[%emt 0:03:54]} d5 {[%emt 0:10:01]} 8. Ng3 {[%emt 0:04:04]} Qe7+ {[%emt 0:00:57]} 9. Qe2 {[%emt 0:15:31]} Qxe2+ {[%emt 0:01:27]} 10. Bxe2 {[%emt 0:00:20]} Nc6 {[%emt 0:00:22]} 11. O-O-O {[%emt 0:03:52]} Bd7 {[%emt 0:00:46]} 12. Bf3 {[%emt 0:02:56]} Be6 {[%emt 0:01:40]} 13. h4 {[%emt 0:02:34]} O-O-O {[%emt 0:02:17]} 14. N1e2 {[%emt 0:06:15]} Rhe8 {[%emt 0:04:26]} 15. Kb1 {[%emt 0:00:49]} h5 {[%emt 0:12:12]} 16. Nf4 {[%emt 0:02:44]} Bf7 {[%emt 0:00:12]} 17. c3 {[%emt 0:00:10]} a5 {[%emt 0:08:41]} 18. Rhe1 {[%emt 0:05:03]} Ne7 {[%emt 0:06:40]} 19. Ne6 {[%emt 0:03:31]} Bxe6 {[%emt 0:00:02]} 20. Rxe6 {[%emt 0:00:23]} Kd7 {[%emt 0:01:09]} 21. Rde1 {[%emt 0:01:06]} c6 {[%emt 0:00:13]} 22. Nxh5 {[%emt 0:05:47]} Nf5 {[%emt 0:04:50]} 23. Rxe8 {[%emt 0:02:57]} Rxe8 {[%emt 0:00:02]} 24. Rxe8 {[%emt 0:00:20]} Kxe8 {[%emt 0:00:02]} 25. Nxg7+ {[%emt 0:00:12]} Nxg7 {[%emt 0:00:02]} 26. g4 {[%emt 0:03:51]} Ke7 {[%emt 0:00:55]} 27. Kc2 {[%emt 0:04:21]} Ke6 {[%emt 0:05:06]} 28. a4 {[%emt 0:03:06]} f5 {[%emt 0:02:03]} 29. h5 {[%emt 0:11:24]} gxh5 {[%emt 0:01:29]} 30. gxh5 {[%emt 0:00:06]} Kf6 {[%emt 0:00:03]} 31. b4 {[%emt 0:01:51]} b6 {[%emt 0:00:42]} 32. bxa5 {[%emt 0:01:56]} bxa5 {[%emt 0:00:02]} 33. c4 {[%emt 0:00:21]} Ne6 {[%emt 0:02:51]} 34. Kd3 {[%emt 0:04:24]} Nc7 {[%emt 0:03:03]} 35. Ke3 {[%emt 0:04:21]} Kg5 {[%emt 0:00:31]} 36. Kd3 {[%emt 0:00:44]} Kf6 {[%emt 0:00:07]} 37. Be2 {[%emt 0:00:38]} Ne6 {[%emt 0:01:18]} 38. Ke3 {[%emt 0:00:27]} Kg5 {[%emt 0:00:20]} 39. Bf3 {[%emt 0:00:32]} Nc7 {[%emt 0:00:06]} 40. Be2 {[%emt 0:00:00]} Ne6 {[%emt 0:00:00]} 41. c5 {[%emt 0:10:31]} f4+ {[%emt 0:03:50]} 42. Kd3 {[%emt 0:00:34]} Nd8 {[%emt 0:05:48]} 43. Bf3 {[%emt 0:01:53]} Kh6 {[%emt 0:00:22]} 44. Bg4 {[%emt 0:04:43]} Kg5 {[%emt 0:00:19]} 45. f3 {[%emt 0:06:17]} Kf6 {[%emt 0:03:13]} 46. Bd7 {[%emt 0:01:46]} Ke7 {[%emt 0:04:28]} 47. Bf5 {[%emt 0:00:25]} Kf6 {[%emt 0:00:43]} 48. Bg6 {[%emt 0:00:57]} Kg5 {[%emt 0:03:32]} 49. Be8 {[%emt 0:00:40]} Kh6 {[%emt 0:00:02]} 50. Kd2 {[%emt 0:00:25]} Kg7 {[%emt 0:00:48]} 51. Ke1 {[%emt 0:02:45]} Kf8 {[%emt 0:00:06]} 52. Bd7 {[%emt 0:00:09]} Ke7 {[%emt 0:00:02]} 53. Bg4 {[%emt 0:02:28]} Kf6 {[%emt 0:02:37]} 54. Kf2 {[%emt 0:00:43]} Kg5 {[%emt 0:00:42]} 55. Kg2 {[%emt 0:00:16]} Nf7 {[%emt 0:00:56]} 56. Kh3 {[%emt 0:01:10]} Nd8 {[%emt 0:00:09]} 57. Kh2 {[%emt 0:00:37]} Kh6 {[%emt 0:01:50]} 58. Kg2 {[%emt 0:00:06]} Kg5 {[%emt 0:00:01]} 59. Kh3 {[%emt 0:00:06]} Nf7 {[%emt 0:06:05]} 60. Bd7 {[%emt 0:00:16]} Nd8 {[%emt 0:00:01]} 61. Be8 {[%emt 0:00:43]} Kf6 {[%emt 0:00:09]} 62. h6 {[%emt 0:01:47]} 1-0

[Event "POL-chT 2 Liga 2019"]
[Site "Poronin"]
[Date "2019.09.08"]
[Round "2.36"]
[White "Budkiewicz, Magdalena"]
[Black "Szydlowska-Duda, Marta"]
[Result "0-1"]
[ECO "B01"]
[WhiteElo "1714"]
[BlackElo "1986"]
[Annotator "NA"]
[PlyCount "44"]
[EventDate "2019.09.07"]
[EventType "team-tourn"]
[EventCountry "POL"]
[SourceTitle "playchess.com"]
[Source "ChessBase"]
[SourceQuality "1"]
[TimeControl "40/5400+30:1800+30"]

1. e4 {[%emt 0:00:00]} d5 {[%emt 0:00:00]} 2. exd5 {[%emt 0:00:00]} Qxd5 {[%emt 0:00:00]} 3. Nc3 {[%emt 0:00:06]} Qd6 {[%emt 0:00:15]} 4. d4 {[%emt 0:01:26]} Nf6 {[%emt 0:00:24]} 5. Nb5 {[%emt 0:02:01]} Qb6 {[%emt 0:06:45]} 6. c4 {[%emt 0:00:56]} c6 {[%emt 0:08:39]} 7. Nc3 {[%emt 0:00:25]} Bf5 {[%emt 0:03:51]} 8. Nf3 {[%emt 0:04:02]} e6 {[%emt 0:06:57]} 9. Ne5 {[%emt 0:06:45]} Bb4 {[%emt 0:12:14]} 10. g4 {[%emt 0:19:36]} Bg6 {[%emt 0:02:04]} 11. Bg2 {[%emt 0:05:37]} Nbd7 {[%emt 0:08:39]} 12. h4 {[%emt 0:03:36]} Nxe5 {[%emt 0:08:48]} 13. dxe5 {[%emt 0:02:30]} Ne4 {[%emt 0:00:46]} 14. Bxe4 {[%emt 0:15:34]} Bxe4 {[%emt 0:00:10]} 15. O-O {[%emt 0:00:34]} Rd8 {[%emt 0:10:31]} 16. Qb3 {[%emt 0:01:52]} Rd3 {[%emt 0:09:23]} 17. Be3 {[%emt 0:14:06]} Rxe3 {[%emt 0:10:24]} 18. c5 {[%emt 0:08:32]} Qxc5 {[%emt 0:05:29]} 19. fxe3 {[%emt 0:03:15]} Qxe3+ {[%emt 0:00:06]} 20. Rf2 {[%emt 0:00:09]} Qg3+ {[%emt 0:00:27]} 21. Kf1 {[%emt 0:00:17]} Bd3+ {[%emt 0:00:48]} 22. Ne2 {[%emt 0:00:43]} Bc5 {[%emt 0:01:34] Kg1} 0-1

[Event "POL-chT 2 Liga 2019"]
[Site "Poronin"]
[Date "2019.09.08"]
[Round "2.38"]
[White "Raczynski, Krzysztof"]
[Black "Szadkowski, Kamil"]
[Result "1/2-1/2"]
[ECO "C86"]
[WhiteElo "2244"]
[BlackElo "2245"]
[Annotator "NA"]
[PlyCount "59"]
[EventDate "2019.09.07"]
[EventType "team-tourn"]
[EventCountry "POL"]
[SourceTitle "playchess.com"]
[Source "ChessBase"]
[SourceQuality "1"]
[TimeControl "40/5400+30:1800+30"]

1. e4 {[%emt 0:00:00]} e5 {[%emt 0:00:00]} 2. Nf3 {[%emt 0:00:00]} Nc6 {[%emt 0:00:00]} 3. Bb5 {[%emt 0:00:00]} a6 {[%emt 0:01:17]} 4. Ba4 {[%emt 0:00:00]} Nf6 {[%emt 0:00:45]} 5. Qe2 {[%emt 0:00:24]} Be7 {[%emt 0:02:40]} 6. O-O {[%emt 0:02:33]} b5 {[%emt 0:01:56]} 7. Bb3 {[%emt 0:00:05]} O-O {[%emt 0:00:08]} 8. c3 {[%emt 0:00:41]} d6 {[%emt 0:00:05]} 9. Rd1 {[%emt 0:01:40]} Na5 {[%emt 0:00:46]} 10. Bc2 {[%emt 0:00:09]} c5 {[%emt 0:00:06]} 11. d4 {[%emt 0:00:15]} Qc7 {[%emt 0:00:06]} 12. d5 {[%emt 0:00:13]} Bd7 {[%emt 0:00:14]} 13. b3 {[%emt 0:00:46]} Rfb8 {[%emt 0:03:45]} 14. Nbd2 {[%emt 0:03:23]} Nb7 {[%emt 0:05:18]} 15. Nf1 {[%emt 0:02:50]} a5 {[%emt 0:01:10]} 16. a4 {[%emt 0:04:40]} c4 {[%emt 0:02:03]} 17. bxc4 {[%emt 0:03:45]} bxa4 {[%emt 0:00:30]} 18. Ba3 {[%emt 0:05:03]} Nc5 {[%emt 0:05:18]} 19. Bxc5 {[%emt 0:04:23]} Qxc5 {[%emt 0:01:11]} 20. Bxa4 {[%emt 0:00:25]} Bxa4 {[%emt 0:02:19]} 21. Rxa4 {[%emt 0:00:06]} Nd7 {[%emt 0:01:30]} 22. Ne3 {[%emt 0:03:31]} g6 {[%emt 0:05:53]} 23. Ne1 {[%emt 0:06:32]} Qb6 {[%emt 0:09:41]} 24. Nd3 {[%emt 0:07:21]} Qb3 {[%emt 0:11:51]} 25. Ra2 {[%emt 0:11:27]} Bg5 {[%emt 0:06:37]} 26. Rb2 {[%emt 0:04:14]} Qxc3 {[%emt 0:02:24]} 27. Rc2 {[%emt 0:01:07]} Qb3 {[%emt 0:03:32]} 28. Rb2 {[%emt 0:21:32]} Qc3 {[%emt 0:00:20]} 29. Rc2 {[%emt 0:00:13]} Qb3 {[%emt 0:05:59]} 30. Rb2 {[%emt 0:03:44]} 1/2-1/2

[Event "POL-chT 2 Liga 2019"]
[Site "Poronin"]
[Date "2019.09.08"]
[Round "2.39"]
[White "Szadkowski, Krzysztof"]
[Black "Bardeli, Lukasz"]
[Result "0-1"]
[ECO "B14"]
[WhiteElo "2138"]
[BlackElo "2144"]
[Annotator "NA"]
[PlyCount "38"]
[EventDate "2019.09.07"]
[EventType "team-tourn"]
[EventCountry "POL"]
[SourceTitle "playchess.com"]
[Source "ChessBase"]
[SourceQuality "1"]
[TimeControl "40/5400+30:1800+30"]

1. e4 {[%emt 0:00:00]} c6 {[%emt 0:00:00]} 2. d4 {[%emt 0:00:20]} d5 {[%emt 0:00:00]} 3. exd5 {[%emt 0:00:04]} cxd5 {[%emt 0:00:00]} 4. c4 {[%emt 0:00:15]} Nf6 {[%emt 0:00:03]} 5. Nc3 {[%emt 0:00:13]} g6 {[%emt 0:00:50]} 6. Qb3 {[%emt 0:01:58]} Bg7 {[%emt 0:00:21]} 7. cxd5 {[%emt 0:12:01]} O-O {[%emt 0:00:12]} 8. Bf4 {[%emt 0:00:49]} Nbd7 {[%emt 0:10:43]} 9. a4 {[%emt 0:01:08]} Nb6 {[%emt 0:06:10]} 10. d6 {[%emt 0:04:18]} Be6 {[%emt 0:04:55]} 11. Qa3 {[%emt 0:03:04]} Re8 {[%emt 0:07:22]} 12. Bb5 {[%emt 0:14:47]} Nc4 {[%emt 0:04:53]} 13. Qc5 {[%emt 0:39:40]} exd6 {[%emt 0:03:34]} 14. Bxd6 {[%emt 0:01:19]} b6 {[%emt 0:02:30]} 15. Bc7 {[%emt 0:03:52]} bxc5 {[%emt 0:01:26]} 16. Bxd8 {[%emt 0:00:05]} Rexd8 {[%emt 0:01:00]} 17. d5 {[%emt 0:01:44]} Nxd5 {[%emt 0:00:29]} 18. Bxc4 {[%emt 0:02:18]} Nxc3 {[%emt 0:00:08]} 19. Bxe6 {[%emt 0:00:21]} fxe6 {[%emt 0:00:06]} 0-1

[Event "POL-chT 2 Liga 2019"]
[Site "Poronin"]
[Date "2019.09.08"]
[Round "2.40"]
[White "Butyrowski, Marcel"]
[Black "Leskiewicz, Ignacy"]
[Result "1/2-1/2"]
[ECO "E63"]
[WhiteElo "1873"]
[BlackElo "2116"]
[Annotator "NA"]
[PlyCount "133"]
[EventDate "2019.09.07"]
[EventType "team-tourn"]
[EventCountry "POL"]
[SourceTitle "playchess.com"]
[Source "ChessBase"]
[SourceQuality "1"]
[TimeControl "40/5400+30:1800+30"]

1. d4 {[%emt 0:00:00]} Nf6 {[%emt 0:00:00]} 2. c4 {[%emt 0:00:00]} g6 {[%emt 0:00:00]} 3. g3 Bg7 {[%emt 0:00:00]} 4. Bg2 {[%emt 0:00:14]} d6 {[%emt 0:00:24]} 5. Nf3 {[%emt 0:00:35]} O-O {[%emt 0:00:20]} 6. O-O {[%emt 0:00:18]} Nc6 {[%emt 0:00:36]} 7. Nc3 {[%emt 0:00:51]} a6 {[%emt 0:00:10]} 8. d5 {[%emt 0:04:02]} Na5 {[%emt 0:01:48]} 9. b3 {[%emt 0:01:47]} Rb8 {[%emt 0:05:16]} 10. Bb2 {[%emt 0:01:02]} b5 {[%emt 0:04:38]} 11. cxb5 {[%emt 0:02:05]} axb5 {[%emt 0:05:20]} 12. Nd4 {[%emt 0:00:51]} b4 {[%emt 0:15:10]} 13. Nb1 {[%emt 0:03:58]} e5 {[%emt 0:20:48]} 14. Nc2 {[%emt 0:05:09]} c5 {[%emt 0:14:18]} 15. dxc6 {[%emt 0:01:48]} Qc7 {[%emt 0:01:23]} 16. e4 {[%emt 0:05:54]} Qxc6 {[%emt 0:04:40]} 17. Nd2 {[%emt 0:02:07]} Bg4 {[%emt 0:00:54]} 18. f3 {[%emt 0:01:11]} Be6 {[%emt 0:01:00]} 19. Kh1 {[%emt 0:01:58]} Qb6 {[%emt 0:05:18]} 20. Re1 {[%emt 0:05:37]} Rbc8 {[%emt 0:01:35]} 21. Nf1 {[%emt 0:02:49]} Rfd8 {[%emt 0:03:27]} 22. Nfe3 {[%emt 0:01:44]} h5 {[%emt 0:04:05]} 23. Qd2 {[%emt 0:00:56]} Rb8 {[%emt 0:05:58]} 24. f4 {[%emt 0:05:57]} exf4 {[%emt 0:01:43]} 25. Nd5 {[%emt 0:03:04]} Bxd5 26. Bd4 {[%emt 0:02:21]} Qb5 {[%emt 0:02:22]} 27. exd5 {[%emt 0:00:54]} fxg3 {[%emt 0:00:10]} 28. Rf1 {[%emt 0:02:25]} Ng4 {[%emt 0:00:51]} 29. Bxg7 {[%emt 0:01:19]} Kxg7 {[%emt 0:00:21]} 30. hxg3 {[%emt 0:01:14]} Qd7 {[%emt 0:01:01]} 31. Nxb4 {[%emt 0:01:16]} h4 {[%emt 0:00:26]} 32. Nc6 {[%emt 0:01:53]} Nxc6 {[%emt 0:00:57]} 33. dxc6 {[%emt 0:00:18]} Qa7 {[%emt 0:00:28]} 34. Qc3+ {[%emt 0:07:48]} f6 {[%emt 0:00:42]} 35. c7 {[%emt 0:01:14]} hxg3 {[%emt 0:00:44]} 36. cxd8=Q {[%emt 0:01:16]} Rxd8 {[%emt 0:00:16]} 37. Qxg3 {[%emt 0:00:27]} Rh8+ 38. Bh3 {[%emt 0:00:25]} Qb7+ {[%emt 0:00:38]} 39. Rf3 {[%emt 0:02:28]} Rxh3+ {[%emt 0:00:19]} 40. Qxh3 {[%emt 0:00:00]} Nf2+ {[%emt 0:00:00]} 41. Kh2 {[%emt 0:01:39]} Nxh3 {[%emt 0:03:07]} 42. Rxh3 {[%emt 0:00:05]} Qe4 {[%emt 0:01:09]} 43. Rg1 {[%emt 0:00:59]} d5 {[%emt 0:04:38]} 44. Rhg3 {[%emt 0:00:54]} g5 {[%emt 0:00:36]} 45. R1g2 {[%emt 0:04:13]} d4 {[%emt 0:06:43]} 46. Rf2 {[%emt 0:00:28]} g4 {[%emt 0:04:13]} 47. a4 {[%emt 0:01:23]} f5 {[%emt 0:02:21]} 48. a5 {[%emt 0:00:30]} Qe6 {[%emt 0:03:38]} 49. a6 {[%emt 0:00:54]} Kg6 {[%emt 0:00:43]} 50. a7 {[%emt 0:00:43]} Qa6 {[%emt 0:00:27]} 51. Rd2 {[%emt 0:00:51]} Qxa7 {[%emt 0:00:16]} 52. Rgd3 {[%emt 0:00:12]} Kg5 {[%emt 0:01:56]} 53. Kg2 {[%emt 0:00:54]} Kh4 {[%emt 0:01:44]} 54. Rxd4 {[%emt 0:01:20]} Qb7+ {[%emt 0:00:09]} 55. Rd5 {[%emt 0:00:32]} Qxb3 {[%emt 0:00:28]} 56. Rxf5 {[%emt 0:05:09]} Qh3+ {[%emt 0:00:47]} 57. Kg1 {[%emt 0:00:09]} Qe3+ {[%emt 0:02:03]} 58. Rdf2 {[%emt 0:00:09]} g3 {[%emt 0:01:12]} 59. R5f4+ {[%emt 0:01:13]} Kh3 {[%emt 0:00:25]} 60. R4f3 {[%emt 0:00:08]} Qd4 {[%emt 0:00:30]} 61. Kh1 {[%emt 0:01:01]} Qd1+ {[%emt 0:03:18]} 62. Rf1 {[%emt 0:00:14]} Qe2 {[%emt 0:00:06]} 63. R1f2 {[%emt 0:00:32]} Qd1+ {[%emt 0:00:49]} 64. Rf1 {[%emt 0:00:08]} Qd5 {[%emt 0:00:17]} 65. Kg1 {[%emt 0:00:32]} Qc5+ {[%emt 0:00:43]} 66. R1f2 {[%emt 0:01:01]} Qd4 {[%emt 0:01:32]} 67. Kh1 {[%emt 0:00:26]} 1/2-1/2

[Event "POL-chT 2 Liga 2019"]
[Site "Poronin"]
[Date "2019.09.08"]
[Round "2.41"]
[White "Kwiatkowski, Wiktor"]
[Black "Wojdak, Jan"]
[Result "1/2-1/2"]
[ECO "B66"]
[WhiteElo "2011"]
[BlackElo "1973"]
[Annotator "NA"]
[PlyCount "83"]
[EventDate "2019.09.07"]
[EventType "team-tourn"]
[EventCountry "POL"]
[SourceTitle "playchess.com"]
[Source "ChessBase"]
[SourceQuality "1"]
[TimeControl "40/5400+30:1800+30"]

1. e4 {[%emt 0:00:00]} c5 {[%emt 0:00:00]} 2. Nf3 {[%emt 0:00:00]} Nc6 {[%emt 0:00:01]} 3. d4 {[%emt 0:00:00]} cxd4 {[%emt 0:00:08]} 4. Nxd4 {[%emt 0:00:00]} Nf6 {[%emt 0:00:12]} 5. Nc3 {[%emt 0:00:06]} d6 {[%emt 0:00:08]} 6. Bg5 {[%emt 0:00:13]} e6 {[%emt 0:00:17]} 7. Qd2 {[%emt 0:00:19]} a6 {[%emt 0:00:10]} 8. O-O-O {[%emt 0:00:12]} h6 {[%emt 0:00:38]} 9. Bh4 {[%emt 0:04:01]} Nxe4 {[%emt 0:00:45]} 10. Nxe4 {[%emt 0:19:33]} Qxh4 {[%emt 0:00:12]} 11. Qe3 {[%emt 0:01:48]} d5 {[%emt 0:15:26]} 12. Nxc6 {[%emt 0:17:07]} bxc6 {[%emt 0:00:06]} 13. Qb6 {[%emt 0:02:05]} Bd7 {[%emt 0:00:15]} 14. Rd4 {[%emt 0:16:53]} Qf4+ {[%emt 0:01:55]} 15. Nd2 {[%emt 0:02:09]} Qb8 {[%emt 0:03:26]} 16. Qxb8+ {[%emt 0:04:05]} Rxb8 {[%emt 0:00:08]} 17. Ra4 {[%emt 0:05:26]} Bc5 {[%emt 0:01:56]} 18. f3 {[%emt 0:01:05]} Be3 {[%emt 0:03:19]} 19. Rxa6 {[%emt 0:02:31]} Ke7 {[%emt 0:02:27]} 20. b3 {[%emt 0:00:25]} Kd6 {[%emt 0:09:14]} 21. Bd3 {[%emt 0:02:37]} Ra8 {[%emt 0:09:00]} 22. Rxa8 {[%emt 0:00:15]} Rxa8 {[%emt 0:00:04]} 23. a4 {[%emt 0:00:04]} f5 {[%emt 0:04:14]} 24. Re1 {[%emt 0:03:47]} Bxd2+ {[%emt 0:01:10]} 25. Kxd2 {[%emt 0:00:02]} e5 {[%emt 0:00:08]} 26. Kc3 {[%emt 0:04:26]} e4 {[%emt 0:00:11]} 27. fxe4 {[%emt 0:00:27]} fxe4 {[%emt 0:00:05]} 28. Be2 {[%emt 0:00:19]} c5 {[%emt 0:01:02]} 29. Rf1 {[%emt 0:00:43]} d4+ {[%emt 0:00:48]} 30. Kd2 {[%emt 0:00:25]} Be6 {[%emt 0:00:43]} 31. Rf4 {[%emt 0:03:54]} Ke5 {[%emt 0:00:07]} 32. Rxe4+ {[%emt 0:00:18]} Kd6 {[%emt 0:00:04]} 33. Bf3 {[%emt 0:03:46]} Ra7 {[%emt 0:01:33]} 34. b4 {[%emt 0:03:20]} cxb4 {[%emt 0:02:43]} 35. Rxd4+ {[%emt 0:00:48]} Kc5 {[%emt 0:00:37]} 36. Re4 {[%emt 0:00:54]} Bc4 {[%emt 0:12:00]} 37. a5 {[%emt 0:02:26]} Rxa5 {[%emt 0:04:01]} 38. Re5+ {[%emt 0:01:32]} Kb6 {[%emt 0:00:15]} 39. Rxa5 {[%emt 0:00:38]} Kxa5 {[%emt 0:00:04]} 40. Ke3 {[%emt 0:00:00]} Ba2 {[%emt 0:00:00]} 41. Kd4 {[%emt 0:15:40]} Bb1 {[%emt 0:09:38]} 42. Ke4 1/2-1/2